[Event "CZE-ch U12 Open 2023"]
[Site "Teplice"]
[Date "2023.03.12"]
[Round "2.1"]
[White "Mik, Tomas"]
[Black "Policar, Martin"]
[Result "0-1"]
[ECO "C42"]
[WhiteElo "1911"]
[BlackElo "1552"]
[Annotator "TA"]
[PlyCount "78"]
[EventDate "2023.03.09"]
[EventType "swiss"]
[EventCountry "CZE"]
[SourceTitle "playchess.com"]
[Source "ChessBase"]
[SourceQuality "1"]
[TimeControl "40/5400+30:1800+30"]

{[%evp 10,78,22,0,9,14,13,28,30,21,32,25,26,31,31,24,28,18,38,29,31,25,58,52,145,157,151,48,118,85,83,55,97,38,4,0,0,0,52,62,87,24,32,-21,15,-64,-10,-37,10,0,50,-18,114,27,140,29,32,29,15,26,44,6,37,48,60,60,137,129,156,-29994,-29995]} 1. Nc3 {[%emt 0:00:02]} e5 {[%emt 0:00:39]} 2. e4 {[%emt 0:00:12]} Nf6 {[%emt 0:00:04]} 3. Nf3 {[%emt 0:00:07]} Bb4 {[%emt 0:00:27]} 4. Bc4 {[%emt 0:00:22]} O-O {[%emt 0:00:19]} 5. O-O {[%emt 0:00:14]} d6 {[%emt 0:01:30]} 6. d3 {[%emt 0:00:08]} Be6 {[%emt 0:01:29] C42: Petroff Defence: 3 Nxe5 and unusual White 3rd moves.} 7. Bxe6 {[%emt 0:00:48]} fxe6 {[%emt 0:00:10]} 8. Ne2 {[%emt 0:01:28]} Nbd7 {[%emt 0:02:05] [#] White has an edge.} 9. Ng3 $146 {[%emt 0:00:59]} ({Predecessor:} 9. c3 Ba5 10. a4 a6 11. Ng3 Qe7 12. d4 exd4 13. cxd4 Kh8 14. Qe2 e5 15. dxe5 Nxe5 {1-0 Radzhabov,R (2404)-Keosidi,K (2400) RUS-chT rapid 2019 (2.3)}) 9... d5 {[%emt 0:03:35]} 10. c3 {[%emt 0:01:04]} Bd6 {[%emt 0:06:09]} 11. Re1 {[%emt 0:00:57]} c6 {[%emt 0:02:20]} 12. Be3 {[%emt 0:02:12]} Ng4 {[%emt 0:01:38]} 13. Bg5 {[%emt 0:01:51]} Qb6 {[%emt 0:02:48][%csl LRb2,LRf2]} 14. Qc2 {[%emt 0:00:47]} h6 {[%emt 0:02:32]} 15. Bc1 {[%emt 0:04:15]} Bc5 {[%emt 0:01:41][%cal Rc5f2]} 16. Re2 {[%emt 0:01:39]} d4 {[%emt 0:15:35]} (16... Rf7 $14) 17. h3 {[%emt 0:04:12]} Ngf6 {[%emt 0:02:24]} 18. cxd4 {[%emt 0:02:58]} (18. b4 $16 Be7 19. cxd4) 18... exd4 {[%emt 0:04:38]} (18... Bxd4 $14 19. Be3 c5) 19. Qc4 {[%emt 0:01:59]} Rfe8 {[%emt 0:08:34]} 20. b3 {[%emt 0:09:34]} Kh7 {[%emt 0:03:47] [#]} 21. Bb2 {[%emt 0:05:38]} (21. e5 $1 $16 {[%cal Re5f6]} Nd5 22. Bb2) 21... e5 $14 {[%emt 0:04:34]} 22. Rf1 {[%emt 0:01:47]} (22. Nf5 {with more complications.} Qb5 23. Qf7 Rg8 24. N5h4) 22... Qb4 {[%emt 0:02:00]} 23. Qc2 {[%emt 0:02:20]} Nf8 {[%emt 0:05:15]} ({Black should play} 23... Bf8 $11) 24. a3 {[%emt 0:01:49]} (24. Bc1 {is interesting.} a5 25. Nf5 N6d7 26. Qd1) 24... Qb5 {[%emt 0:02:05]} 25. Ree1 {[%emt 0:06:22]} (25. b4 $16 Bd6 26. Nf5) 25... Ng6 {[%emt 0:03:49]} 26. Ne2 {[%emt 0:00:39]} (26. Rb1 $14) 26... Nh5 {[%emt 0:01:40]} 27. g3 {[%emt 0:01:11]} (27. Bc1 $11) 27... Bf8 {[%emt 0:04:39] Black is more active.} (27... Bd6 $15) 28. Kh2 {[%emt 0:02:23]} Qc5 {[%emt 0:01:19]} (28... Qa6 $15 {might be stronger.}) 29. Qd1 {[%emt 0:01:06]} Nf6 {[%emt 0:02:46]} (29... Qe7 $11) 30. Bc1 {[%emt 0:05:23]} (30. g4 $14) 30... Rad8 {[%emt 0:02:11] [#]} (30... Nd7 $11) 31. Rg1 {[%emt 0:02:09]} (31. g4 $1 $16) 31... Nxe4 {[%emt 0:01:22]} 32. b4 {[%emt 0:07:25]} ({Only move:} 32. dxe4 $16 {Threatens to win with Qd3.} d3 33. Be3 dxe2 34. Qxd8 Qxe3 35. fxe3 (35. Qxe8 Qxf3 36. Qe6 Qxf2+ 37. Kh1 Qf3+ 38. Rg2 Qf1+ 39. Rg1 Qf3+ 40. Rg2 Qf1+ 41. Rg1 Qf3+ $11) 35... Rxd8 36. Rxe2) 32... Nxf2 $11 {[%emt 0:02:45]} 33. bxc5 Nxd1 {[%emt 0:00:20]} 34. Rxd1 {[%emt 0:00:12]} Bxc5 {[%emt 0:00:09]} 35. Bb2 {[%emt 0:01:35]} e4 {[%emt 0:00:59]} 36. dxe4 {[%emt 0:00:45]} (36. Nfxd4 $2 exd3 37. Nc1 Bxd4 $19) 36... Rxe4 {[%emt 0:01:29]} 37. Nexd4 {[%emt 0:00:45]} Bxd4 {[%emt 0:00:33]} (37... Ne5 $14 38. Nxe5 Rxe5) 38. Rxd4 $16 {[%emt 0:01:53]} Ne5 {[%emt 0:03:00]} 39. Rxd8 $2 {[%emt 0:08:46]} ({Wrong is} 39. Ng5+ $2 hxg5 40. Kg2 (40. Rxd8 {leads to mate.} Re2+ 41. Kh1 Nf3) (40. Rxe4 {is a self mate.} Rd2+ 41. Rg2 Nf3+ 42. Kh1 Rd1+) 40... Rexd4 $19) (39. Rxe4 $16 Nxf3+ 40. Kg2 Nxg1 41. Kxg1) 39... Re2+ {[%emt 0:01:16] Quite a comeback for Black.   Weighted Error Value: White=0.46/Black=0.36} 0-1

[Event "CZE-ch U12 Open 2023"]
[Site "Teplice"]
[Date "2023.03.12"]
[Round "2.2"]
[White "Boff, Ondrej"]
[Black "Bara, Jan"]
[Result "1-0"]
[ECO "B52"]
[WhiteElo "1561"]
[BlackElo "1712"]
[Annotator "NA RC COMBH"]
[PlyCount "120"]
[EventDate "2023.03.09"]
[EventType "swiss"]
[EventCountry "CZE"]
[SourceTitle "playchess.com"]
[Source "ChessBase"]
[SourceQuality "1"]
[TimeControl "40/5400+30:1800+30"]

1. e4 {[%emt 0:00:04]} c5 {[%emt 0:00:01]} 2. Nf3 {[%emt 0:00:07]} d6 {[%emt 0:00:07]} 3. Bb5+ {[%emt 0:00:10]} Bd7 {[%emt 0:00:04]} 4. Bxd7+ {[%emt 0:01:07]} Qxd7 {[%emt 0:00:07]} 5. O-O {[%emt 0:00:58]} g6 {[%emt 0:01:06]} 6. d4 {[%emt 0:00:44]} cxd4 {[%emt 0:00:22]} 7. Nxd4 {[%emt 0:00:21]} Nf6 {[%emt 0:07:31]} 8. f3 {[%emt 0:02:02]} Bg7 {[%emt 0:00:53]} 9. c4 {[%emt 0:01:00]} O-O {[%emt 0:01:15]} 10. Nc3 {[%emt 0:01:12]} Nc6 11. Be3 {[%emt 0:00:28]} Rab8 {[%emt 0:11:33]} 12. Rc1 {[%emt 0:03:51]} a6 {[%emt 0:19:46]} 13. b3 {[%emt 0:05:50]} Nxd4 {[%emt 0:02:22]} 14. Bxd4 {[%emt 0:00:17]} b5 {[%emt 0:00:14]} 15. c5 {[%emt 0:11:37]} Rfd8 {[%emt 0:20:01]} 16. Qe2 {[%emt 0:05:30]} e5 {[%emt 0:09:03]} 17. Be3 {[%emt 0:02:51]} d5 {[%emt 0:00:27]} 18. c6 {[%emt 0:05:45]} Qc7 {[%emt 0:01:24]} 19. Bg5 {[%emt 0:02:36]} Qa7+ {[%emt 0:07:22]} 20. Kh1 {[%emt 0:01:04]} d4 {[%emt 0:01:12]} 21. c7 {[%emt 0:13:54]} Qxc7 {[%emt 0:00:07]} 22. Nd5 {[%emt 0:00:08]} Qd6 {[%emt 0:00:59]} 23. Rc6 {[%emt 0:00:17]} Nxd5 {[%emt 0:01:59]} 24. Rxd6 {[%emt 0:00:23]} Rxd6 {[%emt 0:00:00]} 25. exd5 {[%emt 0:00:18]} Rxd5 {[%emt 0:00:01]} 26. Rc1 {[%emt 0:00:44]} f6 {[%emt 0:01:03]} 27. Qe4 {[%emt 0:01:41]} Rbd8 {[%emt 0:00:13]} 28. Bh4 {[%emt 0:00:31]} d3 {[%emt 0:06:33]} 29. Qe3 {[%emt 0:05:09]} Rd4 {[%emt 0:00:14]} 30. g4 {[%emt 0:02:25]} g5 {[%emt 0:03:34]} 31. Bg3 {[%emt 0:02:05]} d2 {[%emt 0:00:59]} 32. Rd1 {[%emt 0:00:04]} Bf8 {[%emt 0:00:22]} 33. Qc3 {[%emt 0:01:37]} Bb4 {[%emt 0:01:27]} 34. Qc6 {[%emt 0:00:36]} R4d6 {[%emt 0:00:37]} 35. Qe4 {[%emt 0:00:59]} Rc8 {[%emt 0:01:33]} 36. Qxb4 {[%emt 0:01:22]} Rd4 {[%emt 0:00:48]} 37. Qxd4 {[%emt 0:00:37]} exd4 {[%emt 0:00:01]} 38. Rxd2 {[%emt 0:00:13]} d3 {[%emt 0:01:15]} 39. Kg2 {[%emt 0:01:28]} Rc2 {[%emt 0:01:53]} 40. Be1 {[%emt 0:00:11]} Kf7 {[%emt 0:01:04]} 41. Kf2 {[%emt 0:30:31]} Ke6 {[%emt 0:30:40]} 42. Rxc2 {[%emt 0:01:55]} dxc2 {[%emt 0:00:03]} 43. Bd2 {[%emt 0:00:06]} h6 {[%emt 0:00:41]} 44. Ke3 {[%emt 0:00:17]} f5 {[%emt 0:00:14]} 45. h3 {[%emt 0:00:23]} fxg4 {[%emt 0:00:56]} 46. hxg4 {[%emt 0:00:44]} Kd5 {[%emt 0:00:30]} 47. Kd3 {[%emt 0:00:13]} Ke5 {[%emt 0:00:14]} 48. Be3 {[%emt 0:00:52]} a5 {[%emt 0:00:35]} 49. Kxc2 {[%emt 0:00:39]} a4 {[%emt 0:00:08]} 50. bxa4 {[%emt 0:00:19]} bxa4 {[%emt 0:00:00]} 51. Kc3 {[%emt 0:00:32]} Kd5 {[%emt 0:00:11]} 52. Kb4 {[%emt 0:00:35]} a3 {[%emt 0:00:08]} 53. Kxa3 Kc4 54. Kb2 {[%emt 0:00:58]} Kd3 {[%emt 0:00:33]} 55. Bxg5 {[%emt 0:03:08]} hxg5 {[%emt 0:00:09]} 56. a4 {[%emt 0:00:08]} Ke3 {[%emt 0:00:32]} 57. a5 {[%emt 0:00:20]} Kxf3 {[%emt 0:00:01]} 58. a6 {[%emt 0:00:07]} Kxg4 {[%emt 0:00:04]} 59. a7 {[%emt 0:00:14]} Kh3 {[%emt 0:00:09]} 60. a8=Q {[%emt 0:00:08]} g4 {[%emt 0:00:04]} 1-0

[Event "CZE-ch U12 Open 2023"]
[Site "Teplice"]
[Date "2023.03.12"]
[Round "2.3"]
[White "Chernyy, Andrey"]
[Black "Sboev, Kirill"]
[Result "1-0"]
[ECO "C77"]
[WhiteElo "1605"]
[BlackElo "1506"]
[Annotator "NA RC COMBH"]
[PlyCount "131"]
[EventDate "2023.03.09"]
[EventType "swiss"]
[EventCountry "CZE"]
[SourceTitle "playchess.com"]
[Source "ChessBase"]
[SourceQuality "1"]
[TimeControl "40/5400+30:1800+30"]

1. e4 {[%emt 0:00:08]} e5 {[%emt 0:00:04]} 2. Nf3 {[%emt 0:00:04]} Nc6 {[%emt 0:00:08]} 3. Bb5 {[%emt 0:00:13]} a6 {[%emt 0:00:14]} 4. Ba4 {[%emt 0:00:07]} Nf6 {[%emt 0:00:10]} 5. d3 {[%emt 0:00:06]} d6 {[%emt 0:00:21]} 6. O-O {[%emt 0:00:46]} Be7 {[%emt 0:00:07]} 7. c3 {[%emt 0:00:28]} b5 {[%emt 0:00:42]} 8. Bc2 {[%emt 0:01:14]} O-O {[%emt 0:00:28]} 9. h3 {[%emt 0:00:13]} Be6 {[%emt 0:01:32]} 10. Re1 {[%emt 0:01:35]} h6 {[%emt 0:03:07]} 11. Nbd2 {[%emt 0:06:11]} a5 {[%emt 0:05:34]} 12. Nf1 {[%emt 0:02:39]} b4 {[%emt 0:02:32]} 13. d4 {[%emt 0:02:39]} bxc3 {[%emt 0:02:25]} 14. d5 {[%emt 0:02:23]} cxb2 {[%emt 0:04:15]} 15. Bxb2 {[%emt 0:00:22]} Bd7 {[%emt 0:03:34]} 16. dxc6 {[%emt 0:00:25]} Bxc6 {[%emt 0:00:06]} 17. Ng3 {[%emt 0:00:23]} Re8 {[%emt 0:05:08]} 18. Ba4 {[%emt 0:01:16]} Qd7 {[%emt 0:03:05]} 19. Bxc6 {[%emt 0:00:16]} Qxc6 {[%emt 0:00:12]} 20. Rc1 {[%emt 0:00:44]} Qd7 {[%emt 0:02:27]} 21. Qc2 {[%emt 0:00:37]} Rec8 {[%emt 0:05:43]} 22. Red1 {[%emt 0:02:00]} Qb5 {[%emt 0:03:09]} 23. Rb1 {[%emt 0:04:25]} Qe8 {[%emt 0:06:34]} 24. Nf5 {[%emt 0:00:41]} Bf8 {[%emt 0:02:59]} 25. Ne3 {[%emt 0:02:51]} Nd7 {[%emt 0:08:59]} 26. Ba3 {[%emt 0:01:05]} Nb6 {[%emt 0:04:12]} 27. Nd5 {[%emt 0:02:03]} Nxd5 {[%emt 0:02:29]} 28. Rxd5 {[%emt 0:00:08]} c6 {[%emt 0:02:25]} 29. Rdd1 {[%emt 0:00:30]} c5 {[%emt 0:01:05]} 30. Nd2 {[%emt 0:00:50]} Qe6 {[%emt 0:03:35]} 31. Nc4 {[%emt 0:01:29]} Ra6 {[%emt 0:03:39]} 32. Rd5 {[%emt 0:01:56]} f5 {[%emt 0:03:08]} 33. f3 {[%emt 0:01:31]} f4 {[%emt 0:00:34]} 34. Qd3 {[%emt 0:00:28]} Rcc6 {[%emt 0:02:10]} 35. Rb5 {[%emt 0:02:44]} a4 {[%emt 0:01:21]} 36. Rb8 {[%emt 0:04:48]} Qe7 {[%emt 0:02:55]} 37. Qb1 {[%emt 0:06:04]} Qc7 {[%emt 0:02:05]} 38. Qb7 {[%emt 0:01:58]} Qxb7 {[%emt 0:02:30]} 39. Rxb7 {[%emt 0:00:05]} Kh7 {[%emt 0:01:42]} 40. Rd2 {[%emt 0:02:51]} Rc8 {[%emt 0:03:07]} 41. Rb6 {[%emt 0:34:11]} Rxb6 {[%emt 0:31:28]} 42. Nxb6 {[%emt 0:00:06]} Rb8 {[%emt 0:00:34]} 43. Rb2 {[%emt 0:00:20]} Rb7 {[%emt 0:00:57]} 44. Nd5 {[%emt 0:00:58]} Ra7 {[%emt 0:00:59]} 45. Kf2 {[%emt 0:01:15]} Kg6 {[%emt 0:01:47]} 46. Ke2 {[%emt 0:01:55]} Kf7 {[%emt 0:00:40]} 47. Rb6 {[%emt 0:00:33]} Be7 {[%emt 0:01:23]} 48. Rc6 {[%emt 0:02:22]} Ke8 {[%emt 0:01:17]} 49. Rc7 {[%emt 0:01:02]} Rxc7 {[%emt 0:00:53]} 50. Nxc7+ Kd7 {[%emt 0:01:34]} 51. Nd5 {[%emt 0:00:15]} Bd8 {[%emt 0:00:18]} 52. Kd3 {[%emt 0:00:39]} Ba5 {[%emt 0:00:40]} 53. Kc4 {[%emt 0:01:41]} Kc6 {[%emt 0:00:41]} 54. Bb2 {[%emt 0:01:37]} Be1 {[%emt 0:00:58]} 55. Ne7+ {[%emt 0:03:03]} Kd7 {[%emt 0:00:15]} 56. Nd5 {[%emt 0:02:03]} Kc6 {[%emt 0:00:06]} 57. Bc3 {[%emt 0:01:05]} Bh4 {[%emt 0:00:14]} 58. Bd2 {[%emt 0:00:11]} Bd8 {[%emt 0:00:23]} 59. Bc1 {[%emt 0:02:23]} Ba5 {[%emt 0:00:27]} 60. Bb2 {[%emt 0:00:32]} Be1 {[%emt 0:00:09]} 61. Nc3 {[%emt 0:01:13]} Bxc3 {[%emt 0:00:24]} 62. Bxc3 {[%emt 0:00:16]} Kb6 {[%emt 0:00:30]} 63. Kd5 {[%emt 0:02:01]} Kc7 {[%emt 0:00:12]} 64. Ba5+ {[%emt 0:00:57]} Kd7 {[%emt 0:00:11]} 65. a3 {[%emt 0:00:23]} g5 {[%emt 0:00:31]} 66. Bb6 {[%emt 0:00:26]} 1-0

[Event "CZE-ch U12 Open 2023"]
[Site "Teplice"]
[Date "2023.03.12"]
[Round "2.4"]
[White "Komarek, Tobias"]
[Black "Mydlar, Matej"]
[Result "0-1"]
[ECO "A05"]
[WhiteElo "1515"]
[BlackElo "1586"]
[Annotator "NA RC COMBH"]
[PlyCount "76"]
[EventDate "2023.03.09"]
[EventType "swiss"]
[EventCountry "CZE"]
[SourceTitle "playchess.com"]
[Source "ChessBase"]
[SourceQuality "1"]
[TimeControl "40/5400+30:1800+30"]

1. Nf3 {[%emt 0:00:03]} Nf6 {[%emt 0:00:21]} 2. c4 {[%emt 0:00:39]} c5 {[%emt 0:00:04]} 3. g3 {[%emt 0:00:51]} Nc6 {[%emt 0:00:28]} 4. Bg2 {[%emt 0:00:27]} d5 {[%emt 0:00:16]} 5. cxd5 {[%emt 0:00:25]} Nxd5 {[%emt 0:00:06]} 6. d4 {[%emt 0:00:56]} e6 {[%emt 0:05:33]} 7. O-O {[%emt 0:02:39]} Be7 {[%emt 0:03:12]} 8. dxc5 {[%emt 0:02:06]} O-O {[%emt 0:00:37]} 9. Nd4 {[%emt 0:01:48]} Bxc5 {[%emt 0:00:44]} 10. Nxc6 {[%emt 0:00:17]} bxc6 {[%emt 0:00:02]} 11. Qc2 {[%emt 0:01:30]} Qe7 {[%emt 0:01:27]} 12. Nc3 {[%emt 0:01:43]} Bb7 {[%emt 0:06:57]} 13. Ne4 {[%emt 0:02:14]} Bb6 {[%emt 0:00:51]} 14. Ng5 {[%emt 0:06:15]} f5 {[%emt 0:03:06]} 15. e4 {[%emt 0:00:18]} Ne3 {[%emt 0:07:43]} 16. Bxe3 {[%emt 0:04:42]} Bxe3 {[%emt 0:00:57]} 17. Nxe6 {[%emt 0:02:27]} Qxe6 {[%emt 0:02:56]} 18. fxe3 {[%emt 0:05:48]} fxe4 {[%emt 0:03:01]} 19. Bxe4 {[%emt 0:00:56]} Kh8 {[%emt 0:04:14]} 20. Rae1 {[%emt 0:01:30]} h6 {[%emt 0:02:24]} 21. b3 {[%emt 0:02:56]} Rae8 {[%emt 0:01:17]} 22. Rxf8+ {[%emt 0:04:59]} Rxf8 {[%emt 0:01:21]} 23. Rc1 {[%emt 0:02:29]} Re8 {[%emt 0:01:36]} 24. Bf3 {[%emt 0:06:18]} Qxe3+ {[%emt 0:00:29]} 25. Kg2 {[%emt 0:00:04]} Rf8 {[%emt 0:20:21]} 26. Rf1 {[%emt 0:02:07]} Rf6 {[%emt 0:13:45]} 27. Qe2 {[%emt 0:02:06]} Qc5 {[%emt 0:02:36]} 28. Re1 {[%emt 0:04:36]} Qf8 {[%emt 0:01:35]} 29. Rf1 {[%emt 0:00:57]} Qf7 {[%emt 0:00:39]} 30. Bh5 {[%emt 0:03:02]} c5+ {[%emt 0:01:33]} 31. Bf3 {[%emt 0:00:47]} Ba6 {[%emt 0:00:34]} 32. Qd1 {[%emt 0:03:45]} Bxf1+ {[%emt 0:00:12]} 33. Qxf1 {[%emt 0:00:09]} Qd7 {[%emt 0:00:39]} 34. Qe2 {[%emt 0:00:47]} Rd6 {[%emt 0:00:37]} 35. Kf1 {[%emt 0:01:14]} Rd2 {[%emt 0:00:17]} 36. Qe3 {[%emt 0:01:55]} Rxa2 {[%emt 0:00:47]} 37. Qxc5 {[%emt 0:01:53]} Qd3+ {[%emt 0:00:08]} 38. Ke1 {[%emt 0:00:31]} Qxf3 {[%emt 0:00:14]} 0-1

[Event "CZE-ch U12 Open 2023"]
[Site "Teplice"]
[Date "2023.03.12"]
[Round "2.5"]
[White "Rendl, Lubos"]
[Black "Sochor, Antonin"]
[Result "0-1"]
[ECO "C18"]
[WhiteElo "1477"]
[BlackElo "1574"]
[Annotator "NA RC COMBH"]
[PlyCount "70"]
[EventDate "2023.03.09"]
[EventType "swiss"]
[EventCountry "CZE"]
[SourceTitle "playchess.com"]
[Source "ChessBase"]
[SourceQuality "1"]
[TimeControl "40/5400+30:1800+30"]

1. e4 {[%emt 0:00:08]} e6 {[%emt 0:00:09]} 2. d4 {[%emt 0:00:04]} d5 {[%emt 0:00:13]} 3. Nc3 {[%emt 0:00:08]} Bb4 {[%emt 0:00:23]} 4. e5 {[%emt 0:02:38]} c5 {[%emt 0:00:28]} 5. a3 {[%emt 0:03:38]} Bxc3+ {[%emt 0:00:13]} 6. bxc3 {[%emt 0:00:07]} Qc7 {[%emt 0:00:24]} 7. Bd2 {[%emt 0:02:02]} Nc6 {[%emt 0:01:01]} 8. Qg4 {[%emt 0:07:45]} Nge7 {[%emt 0:00:47]} 9. Nf3 {[%emt 0:01:21]} Bd7 {[%emt 0:14:30]} 10. Be2 {[%emt 0:04:08]} O-O-O {[%emt 0:02:54]} 11. Rb1 {[%emt 0:06:19]} h6 {[%emt 0:01:50]} 12. dxc5 {[%emt 0:03:51]} Nxe5 {[%emt 0:04:44]} 13. Nxe5 {[%emt 0:00:35]} Qxe5 {[%emt 0:00:43]} 14. Qb4 {[%emt 0:00:19]} Bc6 {[%emt 0:01:27]} 15. f3 {[%emt 0:07:18]} g5 {[%emt 0:03:57]} 16. Kf2 {[%emt 0:08:29]} f5 {[%emt 0:00:56]} 17. Be3 {[%emt 0:01:24]} Qc7 {[%emt 0:00:33]} 18. Bb5 {[%emt 0:03:25]} Rd7 {[%emt 0:01:12]} 19. Rhe1 {[%emt 0:01:50]} e5 {[%emt 0:02:45]} 20. g3 {[%emt 0:04:28]} f4 {[%emt 0:04:26]} 21. gxf4 {[%emt 0:01:29]} gxf4 {[%emt 0:00:52]} 22. Bd2 {[%emt 0:02:37]} Bxb5 {[%emt 0:00:47]} 23. Qxb5 {[%emt 0:00:28]} Nc6 {[%emt 0:00:30]} 24. Rg1 {[%emt 0:04:30]} e4 {[%emt 0:01:32]} 25. Rg6 {[%emt 0:01:50]} e3+ {[%emt 0:01:04]} 26. Bxe3 {[%emt 0:00:28]} fxe3+ {[%emt 0:00:12]} 27. Ke1 {[%emt 0:00:38]} Rg7 {[%emt 0:02:35]} 28. Qd3 {[%emt 0:01:26]} Rxg6 {[%emt 0:13:04]} 29. Qxg6 {[%emt 0:00:41]} Kb8 {[%emt 0:01:13]} 30. Qf6 {[%emt 0:01:54]} Rd8 {[%emt 0:01:47]} 31. Qxh6 {[%emt 0:01:40]} d4 {[%emt 0:01:47]} 32. cxd4 {[%emt 0:00:23]} Nxd4 {[%emt 0:00:14]} 33. c3 {[%emt 0:00:51]} Nc2+ {[%emt 0:05:28]} 34. Kf1 {[%emt 0:00:25]} Qf7 {[%emt 0:02:38]} 35. Qc6 {[%emt 0:00:42]} Rd1+ {[%emt 0:04:00]} 0-1

[Event "CZE-ch U12 Open 2023"]
[Site "Teplice"]
[Date "2023.03.12"]
[Round "2.6"]
[White "Kroulik, Vaclav"]
[Black "Tejnor, Martin"]
[Result "1-0"]
[ECO "B81"]
[WhiteElo "1772"]
[BlackElo "1360"]
[Annotator "NA RC COMBH"]
[PlyCount "67"]
[EventDate "2023.03.09"]
[EventType "swiss"]
[EventCountry "CZE"]
[SourceTitle "playchess.com"]
[Source "ChessBase"]
[SourceQuality "1"]
[TimeControl "40/5400+30:1800+30"]

1. e4 {[%emt 0:00:01]} c5 {[%emt 0:00:03]} 2. Nf3 {[%emt 0:00:04]} d6 {[%emt 0:00:04]} 3. d4 {[%emt 0:00:04]} cxd4 {[%emt 0:00:02]} 4. Nxd4 {[%emt 0:00:05]} Nf6 {[%emt 0:00:09]} 5. Nc3 {[%emt 0:00:04]} e6 {[%emt 0:00:06]} 6. g4 {[%emt 0:00:09]} Be7 {[%emt 0:01:12]} 7. Be3 {[%emt 0:01:26]} a6 {[%emt 0:01:07]} 8. Rg1 {[%emt 0:01:22]} b5 {[%emt 0:00:57]} 9. f3 {[%emt 0:02:38]} Bb7 {[%emt 0:00:47]} 10. Qd2 {[%emt 0:01:43]} Nc6 {[%emt 0:00:46]} 11. Nxc6 {[%emt 0:01:14]} Bxc6 {[%emt 0:00:20]} 12. O-O-O {[%emt 0:00:46]} Qc7 {[%emt 0:00:38]} 13. Kb1 {[%emt 0:01:24]} d5 {[%emt 0:02:42]} 14. g5 {[%emt 0:05:25]} b4 {[%emt 0:02:26]} 15. gxf6 {[%emt 0:01:26]} bxc3 {[%emt 0:00:45]} 16. fxg7 {[%emt 0:00:46]} Rg8 {[%emt 0:01:02]} 17. Qxc3 {[%emt 0:00:44]} dxe4 {[%emt 0:01:44]} 18. fxe4 {[%emt 0:01:24]} Qb7 {[%emt 0:01:04]} 19. e5 {[%emt 0:03:02]} Rb8 {[%emt 0:02:07]} 20. b3 {[%emt 0:01:20]} Bb4 {[%emt 0:01:35]} 21. Qd4 {[%emt 0:03:34]} a5 {[%emt 0:02:09]} 22. Bd3 {[%emt 0:01:15]} a4 {[%emt 0:05:27]} 23. Bxh7 {[%emt 0:01:40]} axb3 {[%emt 0:01:57]} 24. cxb3 {[%emt 0:00:41]} Be7 {[%emt 0:02:46]} 25. Bxg8 {[%emt 0:02:03]} Be4+ {[%emt 0:01:38]} 26. Ka1 {[%emt 0:00:41]} Ra8 {[%emt 0:02:01]} 27. Bxf7+ {[%emt 0:01:59]} Kxf7 {[%emt 0:00:35]} 28. g8=Q+ {[%emt 0:02:36]} Rxg8 {[%emt 0:00:15]} 29. Rdf1+ {[%emt 0:00:17]} Bf5 {[%emt 0:00:15]} 30. Rxf5+ {[%emt 0:00:10]} exf5 {[%emt 0:00:15]} 31. Qc4+ {[%emt 0:00:07]} Ke8 {[%emt 0:00:23]} 32. Rxg8+ {[%emt 0:00:15]} Kd7 {[%emt 0:00:11]} 33. e6+ {[%emt 0:00:12]} Kd6 {[%emt 0:00:17]} 34. Bf4# {[%emt 0:00:08]} 1-0

[Event "CZE-ch U12 Open 2023"]
[Site "Teplice"]
[Date "2023.03.12"]
[Round "2.7"]
[White "Migalko, Dmitriy"]
[Black "Hladky, Mikulas"]
[Result "0-1"]
[ECO "C25"]
[WhiteElo "1581"]
[BlackElo "1476"]
[Annotator "NA RC COMBH"]
[PlyCount "76"]
[EventDate "2023.03.09"]
[EventType "swiss"]
[EventCountry "CZE"]
[SourceTitle "playchess.com"]
[Source "ChessBase"]
[SourceQuality "1"]
[TimeControl "40/5400+30:1800+30"]

1. e4 {[%emt 0:00:01]} e5 {[%emt 0:00:06]} 2. Nc3 {[%emt 0:00:06]} Nc6 {[%emt 0:00:31]} 3. f4 {[%emt 0:00:12]} d6 {[%emt 0:00:56]} 4. Bc4 {[%emt 0:00:29]} Nf6 {[%emt 0:00:48]} 5. d3 {[%emt 0:01:40]} Bg4 {[%emt 0:03:53]} 6. Nf3 {[%emt 0:00:53]} Nd4 {[%emt 0:05:51]} 7. fxe5 {[%emt 0:00:35]} dxe5 {[%emt 0:00:58]} 8. Bxf7+ {[%emt 0:04:20]} Kxf7 {[%emt 0:03:33]} 9. Nxe5+ {[%emt 0:00:04]} Ke8 {[%emt 0:02:10]} 10. Nxg4 {[%emt 0:00:09]} Nxg4 {[%emt 0:00:42]} 11. Qxg4 {[%emt 0:00:17]} Nxc2+ {[%emt 0:00:16]} 12. Ke2 {[%emt 0:00:10]} Nxa1 {[%emt 0:05:34]} 13. Qh5+ {[%emt 0:03:23]} Kd7 {[%emt 0:00:26]} 14. Qf5+ {[%emt 0:01:05]} Ke8 {[%emt 0:01:42]} 15. Bg5 {[%emt 0:06:10]} Qd7 {[%emt 0:09:05]} 16. Qe5+ {[%emt 0:02:13]} Be7 {[%emt 0:00:13]} 17. Nd5 {[%emt 0:02:23]} Qg4+ {[%emt 0:00:34]} 18. Kf2 {[%emt 0:00:11]} Rf8+ {[%emt 0:00:08]} 19. Bf4 {[%emt 0:00:20]} Rf7 {[%emt 0:07:04]} 20. h3 {[%emt 0:01:24]} Qd7 {[%emt 0:12:19]} 21. Rxa1 {[%emt 0:07:27]} c6 {[%emt 0:09:12]} 22. Nc7+ {[%emt 0:04:29]} Kf8 {[%emt 0:01:03]} 23. Ke3 {[%emt 0:02:05]} Rc8 {[%emt 0:01:55]} 24. Rf1 {[%emt 0:01:02]} Qxc7 {[%emt 0:01:59]} 25. Qe6 {[%emt 0:00:59]} Qb6+ {[%emt 0:00:35]} 26. d4 {[%emt 0:00:07]} Qd8 {[%emt 0:03:10]} 27. Qxf7+ {[%emt 0:03:19]} Kxf7 {[%emt 0:00:13]} 28. Bc7+ {[%emt 0:00:02]} Ke8 {[%emt 0:00:41]} 29. Bxd8 {[%emt 0:00:04]} Rxd8 {[%emt 0:00:18]} 30. e5 {[%emt 0:00:44]} c5 {[%emt 0:00:48]} 31. dxc5 {[%emt 0:00:54]} Bxc5+ {[%emt 0:00:02]} 32. Ke4 {[%emt 0:00:08]} Ke7 {[%emt 0:00:19]} 33. Rc1 {[%emt 0:00:11]} Bb6 {[%emt 0:01:05]} 34. Rc2 {[%emt 0:01:18]} Ke6 {[%emt 0:00:11]} 35. g4 {[%emt 0:00:43]} Rd5 {[%emt 0:00:42]} 36. Kf3 {[%emt 0:00:03]} Rxe5 {[%emt 0:00:14]} 37. Rc8 {[%emt 0:00:09]} Re3+ {[%emt 0:00:31]} 38. Kf4 {[%emt 0:00:46]} Rxh3 {[%emt 0:00:54]} 0-1